Cogmind - Beta 15 @@@ ROGUE MODE // 2025.08.07 @ 17:50:25 Player: Zoe Result: Destroyed by H-66 Slayer with Gauss Rifle Performance ------------- Evolutions (5) 2500 Regions Visited (14) 2800 Robots Destroyed (70) 350 Value Destroyed (2054) 2054 Prototype IDs (34) 680 Alien Tech Used (0) 0 Bonus (1109) 1109 TOTAL SCORE: 9493 Bonus ------- High Alert Combat Kills 13 Follower Combat Kills 687 Aligned with FarCom 300 Met Data Miner 300 Friendly Fire -191 Cogmind --------- Core Integrity 0/1000 Matter 199/300 Energy 150/150 System Corruption 6% Temperature Cool (0) Movement Walking (120) Location -5/Factory Parts ------- > --- POWER (2) -------- Micro Fission Core > --- PROPULSION (5) --- Thunder Leg Thunder Leg Thunder Leg Thunder Leg Thunder Leg > --- UTILITY (5) ------ (None) > --- WEAPON (5) ------- (None) > --- INVENTORY (5) ---- Medium Treads VTOL Module Peak State ------------ > --- POWER ------------ Light Nuclear Core > --- PROPULSION ------- Airjet Airjet Airjet Airjet Airjet > --- UTILITY ---------- Damper Plating > --- WEAPON ----------- Beamcaster Bore Cannon Bore Cannon > --- INVENTORY -------- Light Nuclear Core Beamcaster Beamcaster Gauss Rifle Power Maul [Rating: 59] Favorites ----------- Power Light Nuclear Core Engine Ion Engine Power Core Light Nuclear Core Propulsion Airjet Treads Medium Treads Leg Aluminum Leg Hover Unit Airjet Flight Unit Flight Unit Utility Small Storage Unit Device Improved Heat Sink Storage Small Storage Unit Processor Targeting Computer Protection Backup Plating III Weapon Bore Cannon Energy Gun Beamcaster Energy Cannon Firepult Ballistic Gun Light Assault Rifle Ballistic Cannon Bore Cannon Launcher Proton Missile Launcher Special Weapon Mining Laser Impact Weapon Power Maul Build | -11 -10 -9 -9 -9 -8 -8 -7 -7 -7 -6 -6 -6 -5 -5 ------- Run | Yrd Mat Mat Min Exi Min Mat Fac Was Fac Fac Low Dat Pro Fac Slots Evolved 10 | . . 2 . . . 2 2 . . 2 . . . 2 Power 1 | . . . . . . . . . . . . . . 1 Propulsion 3 | . . 2 . . . 1 . . . . . . . . Utility 3 | . . . . . . 1 1 . . 1 . . . . Weapon 3 | . . . . . . . 1 . . 1 . . . 1 Parts Attached 109 | 6 3 10 . . 1 7 15 10 17 6 8 . 6 20 Power 10 | 1 . . . . 1 1 2 1 1 . 1 . 1 1 Engine 3 | 1 . . . . 1 . 1 . . . . . . . Core 7 | . . . . . . 1 1 1 1 . 1 . 1 1 Reactor . | . . . . . . . . . . . . . . . Propulsion 46 | 2 . 7 . . . 2 2 . 11 2 2 . 3 15 Treads 8 | 2 . . . . . 2 2 . . . . . 1 1 Leg 11 | . . . . . . . . . 3 . . . . 8 Wheel . | . . . . . . . . . . . . . . . Hover 13 | . . . . . . . . . 5 2 2 . . 4 Flight 14 | . . 7 . . . . . . 3 . . . 2 2 Utility 26 | 1 2 1 . . . 3 5 1 5 3 3 . . 2 Device 14 | . 2 . . . . 2 1 . 1 3 3 . . 2 Storage 5 | 1 . . . . . 1 2 . 1 . . . . . Processor 1 | . . 1 . . . . . . . . . . . . Hackware . | . . . . . . . . . . . . . . . Protection 6 | . . . . . . . 2 1 3 . . . . . Artifact . | . . . . . . . . . . . . . . . Weapon 27 | 2 1 2 . . . 1 6 8 . 1 2 . 2 2 Energy Gun 9 | . . 1 . . . . 3 3 . . 1 . 1 . Energy Cannon 2 | . . . . . . 1 . . . . . . . 1 Ballistic Gun 7 | 2 . 1 . . . . 2 . . . 1 . . 1 Ballistic Cannon 2 | . . . . . . . . 2 . . . . . . Launcher 5 | . . . . . . . 1 3 . . . . 1 . Special Weapon 1 | . 1 . . . . . . . . . . . . . Impact Weapon 1 | . . . . . . . . . . 1 . . . . Slashing Weapon . | . . . . . . . . . . . . . . . Piercing Weapon . | . . . . . . . . . . . . . . . Special Melee Weapon . | . . . . . . . . . . . . . . . Unidentified Prototypes . | . . . . . . . . . . . . . . . Corrupted Parts 2 | . . . . . . . 1 . 1 . . . . . System Corruption 6 | . . . . . . . 1 . 5 . . . . . Parts Lost 60 | . . 3 1 . 2 7 2 6 . 2 11 . 15 11 Power 4 | . . . . . 1 1 . . . . 1 . 1 . Propulsion 27 | . . 3 . . 1 3 . 2 . 2 5 . 4 7 Utility 13 | . . . . . . 1 . 3 . . 2 . 5 2 Weapon 16 | . . . 1 . . 2 2 1 . . 3 . 5 2 Highest Loss Streak 11 | . . 3 1 . 2 6 1 6 . 1 11 . 10 5 To Critical Strikes . | . . . . . . . . . . . . . . . Average Backups 5 | 4 7 5 6 7 6 5 6 5 5 7 5 5 3 1 Power . | 1 . . . 1 . . . . 1 1 . 1 . . Propulsion . | 2 3 . . . . . . . . 2 . 1 . 1 Utility 1 | . 1 2 2 1 1 1 2 . . 1 1 1 . . Weapon 2 | 1 2 3 3 4 5 4 3 4 3 2 . 1 . . Tool/Special . | . . . . . . . . . . . . . . . Unused Backups 17 | . 4 . 1 . . 1 3 7 . . . . . 1 Power 1 | . 1 . . . . . . . . . . . . . Propulsion 3 | . 2 . . . . . . . . . . . . 1 Utility 4 | . . . . . . . . 4 . . . . . . Weapon 9 | . 1 . 1 . . 1 3 3 . . . . . . Tool/Special . | . . . . . . . . . . . . . . . Average Slot Usage (%) 68 | . 99 96 98 100 96 41 76 51 76 85 74 80 58 17 Engine 2 | . 14 11 11 11 10 1 2 . . . . . . . Core 4 | . . . . . . 6 2 5 7 6 5 6 5 2 Treads 5 | . 28 1 . . . . 22 2 . . . . 2 . Hover 8 | . . . . . . . . 12 20 31 12 13 6 4 Flight 6 | . . 39 44 44 40 3 . . 2 . . . 1 . Device 8 | . 13 9 . . . 3 8 . 2 6 22 26 19 2 Storage 5 | . 14 11 11 11 11 8 8 1 1 6 6 6 3 . Processor 1 | . . 1 11 11 11 7 . . . . . . . . Protection 4 | . . . . . . . 7 6 13 13 . . . . Energy Gun 5 | . . 8 . . . . 11 7 7 4 5 6 5 . Ballistic Gun 5 | . 27 12 20 22 21 2 3 . . 1 5 6 3 . Ballistic Cannon 5 | . . . . . . . . 10 15 12 5 6 3 . Impact Weapon 1 | . . . . . . . . . . 1 6 6 3 . Peak Build Rating 59 | 6 9 11 11 13 13 29 44 50 59 52 48 45 45 44 Average Rating 31 | 5 7 9 9 11 12 22 32 44 44 45 41 45 34 19 On Entrance 23 | . 6 7 10 11 13 11 6 43 50 45 43 45 45 13 Naked Turns 166 | . . . . . . 28 . 67 . . . . . 71 Heaviest Build 110 | 12 13 15 14 14 14 110 75 84 73 40 37 36 36 14 Greatest Support 115 | 40 40 40 16 16 16 42 98 98 40 40 17 17 28 115 Greatest Overweight (x) 36 | 1 . 1 . . 1 36 . 19 24 4 4 2 4 2 Average Overweight (x) . | . . . . . . 4 . 2 . . 1 2 1 . Largest Inventory Capacity 25 | 8 8 8 8 8 8 25 20 20 8 8 8 8 8 5 Average Capacity 7 | 7 8 8 8 8 8 14 8 6 5 8 8 8 6 5 Most Carried 15 | 7 8 8 8 8 8 8 15 15 8 8 6 5 7 5 Average Carried 5 | 4 7 5 6 7 7 5 6 5 5 7 4 5 3 1 Final Capacity 20 | 8 8 8 8 8 8 5 20 5 8 8 8 8 5 5 Final Carried 14 | 7 8 6 8 8 7 5 14 5 8 7 5 5 . 2 Class Distribution -------------------- 31% | Mutant 24% | Skirmisher 14% | Derelict-Skirmisher 11% | Tank 10% | Scavenger-Sprinter Dominant Class ---------------- Mutant | -10/Materials Scavenger-Sprinter | -9/Materials Scavenger-Sprinter | -9/Mines Scavenger-Sprinter | -9/Exiles Scavenger-Sprinter | -8/Mines Mutant | -8/Materials Skirmisher | -7/Factory Skirmisher | -7/Waste Tank | -7/Factory Tank | -6/Factory Derelict-Skirmisher | -6/Lower Caves Derelict-Skirmisher | -6/Data Miner Mutant | -5/Proximity Caves Mutant | -5/Factory Resources | -11 -10 -9 -9 -9 -8 -8 -7 -7 -7 -6 -6 -6 -5 -5 ----------- Run | Yrd Mat Mat Min Exi Min Mat Fac Was Fac Fac Low Dat Pro Fac Matter Collected 2294 | 330 78 148 42 . 10 57 207 388 240 117 367 . 216 94 Remotely . | . . . . . . . . . . . . . . . Salvage Created 2381 | 138 159 283 46 . . 514 277 . 96 420 96 . 243 109 Parts 122 | 21 13 19 3 . . 11 16 . 3 21 2 . 7 6 Haulers Intercepted 1 | . 1 . . . . . . . . . . . . . Recyclers Shooed 6 | 3 1 . . . . . . . . 2 . . . . Parts Field Recycled . | . . . . . . . . . . . . . . . Retrieved Matter . | . . . . . . . . . . . . . . . Parts Self-Destructed 10 | . . . . . . . . . . . 2 . 8 . Prevented . | . . . . . . . . . . . . . . . Kills | -11 -10 -9 -9 -9 -8 -8 -7 -7 -7 -6 -6 -6 -5 -5 ------- Run | Yrd Mat Mat Min Exi Min Mat Fac Was Fac Fac Low Dat Pro Fac Combat Hostiles Destroyed 50 | . 3 9 3 . . 9 5 . . 9 2 . 5 5 Melee 4 | . . . . . . . 3 . . 1 . . . . Guns 26 | . 3 9 3 . . . 2 . . 2 . . 3 4 Cannons 10 | . . . . . . 2 . . . 4 1 . 2 1 AOE 6 | . . . . . . 4 . . . 2 . . . . Classes Destroyed 16 | 1 3 2 . . . 4 2 . . 2 . . 2 . Worker 2 | . . . . . . 2 . . . . . . . . Builder 4 | . . . . . . 1 2 . . 1 . . . . Tunneler 7 | 7 . . . . . . . . . . . . . . Hauler 1 | . 1 . . . . . . . . . . . . . Recycler 2 | . 1 . . . . . . . 1 . . . . . Watcher 2 | . . . . . . . 2 . . . . . . . Swarmer 17 | . 3 4 3 . . . . . . . . . 2 5 Cutter 3 | . . . . . . . . . . 3 . . . . Grunt 22 | . . 4 . . . 7 4 . . 5 . . 2 . Brawler 1 | . . . . . . . . . . . . . 1 . Duelist 1 | . . . . . . 1 . . . . . . . . Sentry 2 | . . 1 . . . . . . . 1 . . . . Hunter 3 | . . . . . . 1 . . . . 2 . . . Programmer 1 | . . . . . . . 1 . . . . . . . Samaritan 1 | . . . . . . . . . . . . . 1 . Surgeon 2 | . . . . . . . . . . 2 . . . . Best Kill Streak 9 | 2 4 8 3 . . 4 3 . 1 9 1 . 2 4 Combat Bots Only 8 | . 3 8 3 . . 3 1 . . 8 1 . 2 4 Max Kills in Single Turn 5 | 1 1 1 1 . . 2 1 . 1 5 1 . 1 1 Gunslinging . | . . . . . . . . . . . . . . . Exploded 2 | . . . . . . 1 . . . 2 . . . . Melee 1 | . . . . . . . 1 . . 1 . . . . Uniques/NPCs Destroyed . | . . . . . . . . . . . . . . . Combat | -11 -10 -9 -9 -9 -8 -8 -7 -7 -7 -6 -6 -6 -5 -5 -------- Run | Yrd Mat Mat Min Exi Min Mat Fac Was Fac Fac Low Dat Pro Fac Hostile Shots Fired 667 | . 13 35 14 . 6 69 54 12 . 54 71 . 107 232 Missed 212 | . 1 14 7 . 1 16 20 1 . 19 16 . 35 82 Hits 455 | . 12 21 7 . 5 53 34 11 . 35 55 . 72 150 Melee 20 | . . . . . . 1 . 11 . 7 . . 1 . Projectile 435 | . 12 21 7 . 5 52 34 . . 28 55 . 71 150 AOE 1 | . . . . . . . . . . 1 . . . . Critical Strikes 24 | . . 1 . . . 2 2 5 . 3 1 . 1 9 Damage Taken 7969 | . 111 242 75 . 79 965 604 485 10 521 924 . 1152 2801 Core 2328 | . 6 48 9 . . 396 92 346 . 37 152 . 240 1002 Absorbed by Shields . | . . . . . . . . . . . . . . . Regen/Repaired (Parts) 10 | . 10 . . . . . . . . . . . . . Core Remaining (%) 66 | 100 97 . . . 85 28 . . 37 . . . 49 . Volleys Fired 206 | 35 13 29 4 . 4 17 17 3 . 14 7 . 18 45 Largest 3 | 2 2 2 2 . 1 2 3 3 . 3 3 . 3 1 Hottest 250 | 40 100 100 43 . 100 250 190 117 . 171 151 . 147 98 Shots Fired 382 | 70 24 53 8 . 4 26 31 9 . 42 21 . 49 45 Gun 267 | 70 22 48 8 . . 19 24 . . 14 14 . 33 15 Cannon 87 | . . . . . . 7 . . . 28 7 . 15 30 Launcher 13 | . . . . . . . 3 9 . . . . 1 . Special 15 | . 2 5 . . 4 . 4 . . . . . . . Kinetic 252 | 70 22 29 8 . . 19 6 . . 38 14 . 31 15 Thermal 103 | . 2 24 . . 4 7 8 . . 4 7 . 17 30 Explosive 7 | . . . . . . . . 6 . . . . 1 . Electromagnetic 20 | . . . . . . . 17 3 . . . . . . Robot Hit Streak 11 | 9 11 10 4 . . 6 8 6 . 4 4 . 7 4 Robot Miss Streak 9 | 4 1 2 1 . . 5 3 1 . 9 2 . 5 7 Penetration Max 1 | . . . . . . . . . . 1 . . . . Secondary Targets . | . . . . . . . . . . . . . . . Shots Hit Robots 216 | 44 16 31 5 . . 19 20 8 . 18 17 . 29 9 Core Hits 127 | 14 8 14 4 . . 23 17 5 1 16 4 . 16 5 Critical Kills 8 | . . . . . . . . . . 5 1 . 2 . Critical Parts Destroyed 10 | 1 . . . . . . . . . 4 3 . 2 . Critical Strikes 21 | 1 . 1 . . . . . . . 10 5 . 4 . Burn 2 | . . 1 . . . . . . . . 1 . . . Destroy 15 | 1 . . . . . . . . . 8 2 . 4 . Smash 4 | . . . . . . . . . . 2 2 . . . Melee Attacks 8 | . . . . . . . . . . 2 6 . . . Impact 8 | . . . . . . . . . . 2 6 . . . Slashing . | . . . . . . . . . . . . . . . Piercing . | . . . . . . . . . . . . . . . Sneak Attacks . | . . . . . . . . . . . . . . . Combat Hostiles . | . . . . . . . . . . . . . . . Follow-up Attacks . | . . . . . . . . . . . . . . . Damage Inflicted 5802 | 374 130 360 51 . 2 994 541 973 21 1024 463 . 601 268 Guns 2270 | 374 130 359 51 . . 119 249 . . 194 145 . 453 196 Cannons 823 | . . . . . . 239 . . . 361 59 . 132 32 Explosions 2193 | . . . . . . 636 189 973 . 379 . . 16 . Melee 349 | . . . . . . . . . . 90 259 . . . Ramming 95 | . . 1 . . 2 . 31 . 21 . . . . 40 Kinetic 2044 | 374 130 147 51 . . 119 41 . . 535 121 . 330 196 Thermal 2015 | . . 212 . . . 875 170 . . 399 83 . 244 32 Explosive 982 | . . . . . . . . 966 . . . . 16 . Electromagnetic 306 | . . . . . . . 299 7 . . . . . . Impact 360 | . . . . . . . . . . 90 259 . 11 . Slashing . | . . . . . . . . . . . . . . . Piercing . | . . . . . . . . . . . . . . . Highest Corruption 7 | . . . . . . . 2 2 7 . . . . 6 Average Corruption 2 | . . . . . . . 1 2 5 . . . . 5 Corruption Purged . | . . . . . . . . . . . . . . . Corruption Blocked . | . . . . . . . . . . . . . . . Effects 57 | . . . . . . . 11 20 25 . . . . 1 Message Errors 13 | . . . . . . . 6 2 4 . . . . 1 Matter Fused 14 | . . . . . . . 1 5 8 . . . . . Heat Flow Errors 7 | . . . . . . . . 5 2 . . . . . Energy Discharges 7 | . . . . . . . 2 2 3 . . . . . Parts Rejected 1 | . . . . . . . . 1 . . . . . . Data Loss (minor) 8 | . . . . . . . 1 2 5 . . . . . Data Loss (major) 5 | . . . . . . . 1 2 2 . . . . . Alerts 2 | . . . . . . . . 1 1 . . . . . Overload Shots . | . . . . . . . . . . . . . . . Overflow Damage 249 | . . . . . . 8 . . . 153 88 . . . Projectiles 14 | . . . . . . . . . . 14 . . . . Explosions 102 | . . . . . . 8 . . . 94 . . . . Melee 133 | . . . . . . . . . . 45 88 . . . Knockbacks 10 | . . . . . . . . . . 7 2 . 1 . Impact 1 | . . . . . . . . . . . 1 . . . Kinetic 7 | . . . . . . . . . . 5 1 . 1 . Secondary 2 | . . . . . . . . . . 2 . . . . Self-Inflicted Damage 279 | . . . . . 1 121 57 . 10 74 . . . 16 Shots 10 | . . . . . . 7 2 . . 1 . . . . Rammed 14 | . . 1 . . 1 . 9 . 2 . . . . 1 Targets Rammed 18 | . . 1 . . 1 . 12 . 2 . . . . 2 Kicked 1 | . . . . . . . . . . . . . . 1 Crushed 3 | . . . . . . . 3 . . . . . . . Highest Temperature 511 | . 20 432 11 . 69 511 96 287 235 154 72 . 121 402 Average Temperature 113 | . 10 168 4 . 40 185 29 89 112 41 33 . 51 168 Received Heat Transfer 1215 | . 30 123 27 . . 315 324 . . 90 . . 294 12 Effects 7 | . . 1 . . . 5 . . . . . . . 1 Shutdowns 1 | . . . . . . 1 . . . . . . . . Energy Bleed 3 | . . . . . . 2 . . . . . . . 1 Matter Decay 1 | . . . . . . 1 . . . . . . . . Short Circuit 2 | . . 1 . . . 1 . . . . . . . . Siege Activations . | . . . . . . . . . . . . . . . Martial Activations . | . . . . . . . . . . . . . . . Shielding Activations . | . . . . . . . . . . . . . . . Robots Disrupted . | . . . . . . . . . . . . . . . Combat Hostiles . | . . . . . . . . . . . . . . . Robots Corrupted 1 | . . . . . . . . . . . 1 . . . Combat Hostiles 1 | . . . . . . . . . . . 1 . . . Parts Fried 3 | . . . . . . . 2 . . 1 . . . . Impact Corruptions 4 | . . . . . . . . . . 1 3 . . . Robots Melted 3 | . . . . . . 3 . . . . . . . . Combat Hostiles 3 | . . . . . . 3 . . . . . . . . Parts Melted 12 | . . 1 . . . 11 . . . . . . . . Heat Transferred 5920 | . . 592 . . . 3920 299 . . 287 222 . 550 50 Parts Sabotaged . | . . . . . . . . . . . . . . . Parts Stolen . | . . . . . . . . . . . . . . . Parts Stripped . | . . . . . . . . . . . . . . . Power Chain Reactions 1 | . . . . . . . 1 . . . . . . . Alert | -11 -10 -9 -9 -9 -8 -8 -7 -7 -7 -6 -6 -6 -5 -5 ------- Run | Yrd Mat Mat Min Exi Min Mat Fac Was Fac Fac Low Dat Pro Fac Maximum Alert Level 2 | . . . . . . . . . . 2 . . . . Low Security (%) 98 | 100 100 100 100 . 100 100 100 100 100 75 . . . 100 Level 1 1 | . . . . . . . . . . 15 . . . . Level 2 . | . . . . . . . . . . 8 . . . . Level 3 . | . . . . . . . . . . . . . . . Level 4 . | . . . . . . . . . . . . . . . Level 5 . | . . . . . . . . . . . . . . . High Security . | . . . . . . . . . . . . . . . Max Security . | . . . . . . . . . . . . . . . Peak Influence 437 | 10 60 187 90 . 22 114 60 23 130 437 . . . 162 Initial 69 | . . . 69 . . 2 47 . . . . . . 35 Average 30 | . 9 43 31 . 1 33 14 . 27 172 . . . 68 Influence Increases 3258 | 35 84 345 202 . 32 362 238 60 310 853 50 . 275 412 Destroy 0b10 Robot/C 1300 | . 60 180 100 . . 180 100 . 100 340 40 . 100 100 Destroy 0b10 Robot/NC 105 | 35 10 . . . . 20 20 . 5 15 . . . . Destroy Leader 248 | . 12 40 20 . . 20 24 . 30 72 10 . 10 10 Allied During Kill 297 | . . . 7 . . . . . 135 155 . . . . Successful Hack 153 | . . 33 . . . 6 28 . 28 58 . . . . Disable Machine 165 | . . . . . . 30 15 . . 90 . . . 30 Destroy Structure 225 | . 2 2 . . 2 31 6 60 12 78 . . . 32 Partial Spotted 75 | . . 30 15 . . . . . . . . . . 30 Lose Combat Pursuer 690 | . . 60 60 . 30 75 45 . . 45 . . 165 210 Influence Decreases 3144 | 35 84 168 309 70 24 264 344 60 310 424 479 . 219 354 Entered New Map 423 | . . . 108 70 . 6 59 . . . 159 . . 21 Time Decay 2122 | 35 84 138 136 . 24 248 265 50 306 224 210 . 179 223 Lost Part 355 | . . 30 5 . . 10 20 10 . 20 110 . 40 110 Lost Ally 244 | . . . 60 . . . . . 4 180 . . . . Squads Dispatched 29 | . 1 6 1 . . 2 4 . 4 6 . . . 5 Investigation 15 | . . 5 1 . . . 2 . 1 2 . . . 4 Extermination 6 | . . . . . . . 2 . 3 . . . . 1 Reinforcement 8 | . 1 1 . . . 2 . . . 4 . . . . Assault . | . . . . . . . . . . . . . . . Garrison . | . . . . . . . . . . . . . . . Intercept . | . . . . . . . . . . . . . . . Searches Triggered . | . . . . . . . . . . . . . . . Data Miner Redirects 1 | . . . . . . . . . . . . . . 1 Construction Impeded 1 | . . . . . . . . . . 1 . . . . Haulers Reinforced . | . . . . . . . . . . . . . . . Active Scanning Responses . | . . . . . . . . . . . . . . . Cargo Convoy Interrupts . | . . . . . . . . . . . . . . . Stealth | -11 -10 -9 -9 -9 -8 -8 -7 -7 -7 -6 -6 -6 -5 -5 --------- Run | Yrd Mat Mat Min Exi Min Mat Fac Was Fac Fac Low Dat Pro Fac Distress Signals 8 | . . 1 . . . 1 . . . 3 . . . 3 Communications Jammed . | . . . . . . . . . . . . . . . Distress Signals . | . . . . . . . . . . . . . . . Times Spotted 149 | . 7 15 8 . 2 23 11 10 2 21 2 . 20 28 Peak Tracking Total 7 | . 3 7 5 . 2 6 3 6 1 6 2 . 5 7 Tactical Retreats 30 | . . 2 3 . 1 4 3 1 . 1 . . 6 9 Traps | -11 -10 -9 -9 -9 -8 -8 -7 -7 -7 -6 -6 -6 -5 -5 ------- Run | Yrd Mat Mat Min Exi Min Mat Fac Was Fac Fac Low Dat Pro Fac Traps Triggered 5 | . . . . . . . 2 . 1 1 . . . 1 Indirectly . | . . . . . . . . . . . . . . . Trap Hack Attempts . | . . . . . . . . . . . . . . . Triggered . | . . . . . . . . . . . . . . . Disarmed . | . . . . . . . . . . . . . . . Reprogrammed . | . . . . . . . . . . . . . . . Reused . | . . . . . . . . . . . . . . . Traps Extracted . | . . . . . . . . . . . . . . . Installed . | . . . . . . . . . . . . . . . Triggered . | . . . . . . . . . . . . . . . Most Traps Carried 1 | . . . 1 1 . . . . . . . . . . Machines | -11 -10 -9 -9 -9 -8 -8 -7 -7 -7 -6 -6 -6 -5 -5 ---------- Run | Yrd Mat Mat Min Exi Min Mat Fac Was Fac Fac Low Dat Pro Fac Machines Disabled 11 | . . . . . . 2 1 . . 6 . . . 2 Max in Single Turn 5 | . . . . . . 1 1 . . 5 . . . 1 Machines Repaired . | . . . . . . . . . . . . . . . Machines Dismantled . | . . . . . . . . . . . . . . . Machines Sabotaged . | . . . . . . . . . . . . . . . Overloaded Fab Kills . | . . . . . . . . . . . . . . . Hacking | -11 -10 -9 -9 -9 -8 -8 -7 -7 -7 -6 -6 -6 -5 -5 --------- Run | Yrd Mat Mat Min Exi Min Mat Fac Was Fac Fac Low Dat Pro Fac Machines Accessed 28 | . 2 7 1 1 . 1 4 . 2 3 . 4 . 3 Terminals 18 | . . 7 . . . 1 3 . 2 3 . . . 2 Fabricators 2 | . . . . . . . 1 . . . . . . 1 Repair Stations 1 | . 1 . . . . . . . . . . . . . Recycling Units 1 | . 1 . . . . . . . . . . . . . Scanalyzers . | . . . . . . . . . . . . . . . Garrison Access . | . . . . . . . . . . . . . . . Total Hacks 108 | . 5 30 1 1 . 4 9 . 4 13 . 33 . 8 Successful 72 | . 2 17 1 1 . 3 5 . 2 5 . 33 . 3 Failed 36 | . 3 13 . . . 1 4 . 2 8 . . . 5 Catastrophic 4 | . 2 1 . . . . . . . . . . . 1 Database Lockouts . | . . . . . . . . . . . . . . . Manual 48 | . 3 27 . 1 . 4 5 . 1 4 . . . 3 Terminals 63 | . . 30 . . . 4 7 . 4 13 . . . 5 Fabricators 5 | . . . . . . . 2 . . . . . . 3 Repair Stations 2 | . 2 . . . . . . . . . . . . . Recycling Units 3 | . 3 . . . . . . . . . . . . . Scanalyzers . | . . . . . . . . . . . . . . . Garrison Access . | . . . . . . . . . . . . . . . Terminal Hacks 47 | . . 5 1 1 . 1 2 . 1 3 . 33 . . Record 12 | . . . . . . . 1 . . . . 11 . . Part Schematic 12 | . . . . . . . . . . . . 12 . . Robot Schematic 7 | . . . . . . . . . . . . 7 . . Robot Analysis 2 | . . 2 . . . . . . . . . . . . Prototype ID Bank 3 | . . . . . . . . . . . . 3 . . Open Door 1 | . . . 1 . . . . . . . . . . . Open DSF 3 | . . . . . . . 1 . 1 1 . . . . Branch Access Points 1 | . . . . . . . . . . 1 . . . . Terminal Index 2 | . . 1 . . . 1 . . . . . . . . Registered Components 2 | . . 1 . . . . . . . 1 . . . . Zone Layout 1 | . . 1 . . . . . . . . . . . . Proto ID Catalog 1 | . . . . 1 . . . . . . . . . . Fabricator Hacks 4 | . . . . . . . 1 . . . . . . 3 Network Status 2 | . . . . . . . 1 . . . . . . 1 Load Schematic 1 | . . . . . . . . . . . . . . 1 Build 1 | . . . . . . . . . . . . . . 1 Repair Station Hacks 2 | . 2 . . . . . . . . . . . . . Scan Component 1 | . 1 . . . . . . . . . . . . . Repair 1 | . 1 . . . . . . . . . . . . . Recycling Unit Hacks . | . . . . . . . . . . . . . . . Scanalyzer . | . . . . . . . . . . . . . . . Garrison Access Hacks . | . . . . . . . . . . . . . . . Unauthorized Hacks 19 | . . 12 . . . 2 2 . 1 2 . . . . Terminals 19 | . . 12 . . . 2 2 . 1 2 . . . . Track 7 | . . 6 . . . 1 . . . . . . . . Botnet 12 | . . 6 . . . 1 2 . 1 2 . . . . Fabricators . | . . . . . . . . . . . . . . . Repair Stations . | . . . . . . . . . . . . . . . Recycling Units . | . . . . . . . . . . . . . . . Scanalyzers . | . . . . . . . . . . . . . . . Garrison Access . | . . . . . . . . . . . . . . . Data Cores Recovered . | . . . . . . . . . . . . . . . Used . | . . . . . . . . . . . . . . . Hacking Detections 20 | . 2 7 . . . 1 4 . 1 2 . . . 3 Full Trace Events 16 | . 1 7 . . . . 2 . 1 2 . . . 3 Feedback Events 1 | . . . . . . . 1 . . . . . . . Corruption 1 | . . . . . . . 1 . . . . . . . Feedback Blocked . | . . . . . . . . . . . . . . . Robot Schematics Acquired 7 | . . . . . . . . . . . . 7 . . Robots Built . | . . . . . . . . . . . . . . . Authchips . | . . . . . . . . . . . . . . . Time . | . . . . . . . . . . . . . . . Total Robot Build Rating . | . . . . . . . . . . . . . . . Part Schematics Acquired 12 | . . . . . . . . . . . . 12 . . Parts Built 1 | . . . . . . . . . . . . . . 1 Authchips . | . . . . . . . . . . . . . . . Time 169 | . . . . . . . . . . . . . . 169 Total Part Build Rating 6 | . . . . . . . . . . . . . . 6 Parts Repaired 1 | . 1 . . . . . . . . . . . . . Time 26 | . 26 . . . . . . . . . . . . . Parts Recycled . | . . . . . . . . . . . . . . . Recycled Matter . | . . . . . . . . . . . . . . . Retrieved Matter . | . . . . . . . . . . . . . . . Retrieved Components . | . . . . . . . . . . . . . . . Parts Scanalyzed . | . . . . . . . . . . . . . . . Part Schematics Acquired . | . . . . . . . . . . . . . . . Parts Damaged . | . . . . . . . . . . . . . . . Bothacking | -11 -10 -9 -9 -9 -8 -8 -7 -7 -7 -6 -6 -6 -5 -5 ------------ Run | Yrd Mat Mat Min Exi Min Mat Fac Was Fac Fac Low Dat Pro Fac Used RIF Installer . | . . . . . . . . . . . . . . . Robots Hacked . | . . . . . . . . . . . . . . . Non-combat . | . . . . . . . . . . . . . . . Combat . | . . . . . . . . . . . . . . . Robot Hacks Applied . | . . . . . . . . . . . . . . . Relay Couplers Released . | . . . . . . . . . . . . . . . Fabnet Peak Effective % . | . . . . . . . . . . . . . . . Robots Rewired . | . . . . . . . . . . . . . . . Allies Hacked . | . . . . . . . . . . . . . . . Hacks Repelled . | . . . . . . . . . . . . . . . Allies | -11 -10 -9 -9 -9 -8 -8 -7 -7 -7 -6 -6 -6 -5 -5 -------- Run | Yrd Mat Mat Min Exi Min Mat Fac Was Fac Fac Low Dat Pro Fac Total Allies 22 | . . . 3 . . . . 19 . . . . . . Largest Group 19 | . . . 3 . . . . 19 17 13 . . . . Highest-Rated Group 475 | . . . 40 . . . . 475 444 370 . . . . Highest-Rated Ally 35 | . . . 16 . . . . 35 35 35 . . . . Total Orders . | . . . . . . . . . . . . . . . Ally Attacks 228 | . . . 17 . . . . 98 37 76 . . . . Total Damage 5510 | . . . 223 . . . . 3419 605 1263 . . . . Kills 26 | . . . 2 . . . . 8 5 11 . . . . Allies Corrupted 2 | . . . . . . . . . 1 1 . . . . Allies Melted . | . . . . . . . . . . . . . . . Intel | -11 -10 -9 -9 -9 -8 -8 -7 -7 -7 -6 -6 -6 -5 -5 ------- Run | Yrd Mat Mat Min Exi Min Mat Fac Was Fac Fac Low Dat Pro Fac Active Infowar (turns) 2739 | . 456 301 . . . . 482 . . . 642 163 695 . Sensors 1982 | . . . . . . . 482 . . . 642 163 695 . Terrain 21 | . 21 . . . . . . . . . . . . . Seismic 736 | . 435 301 . . . . . . . . . . . . Robot Analysis Total 2 | . . 2 . . . . . . . . . . . . Derelict Logs Recovered 5 | . . . 2 . . . . . . . 2 . 1 . Drone Launches . | . . . . . . . . . . . . . . . Drone Recoveries . | . . . . . . . . . . . . . . . Exploration | -11 -10 -9 -9 -9 -8 -8 -7 -7 -7 -6 -6 -6 -5 -5 ------------- Run | Yrd Mat Mat Min Exi Min Mat Fac Was Fac Fac Low Dat Pro Fac Turns Passed 10284 | 431 492 366 361 71 450 742 1205 1475 1120 548 754 163 1593 513 Spaces Moved 5994 | 219 153 294 593 222 462 253 621 544 495 360 332 80 828 538 Core 591 | 40 . . . . . 118 . 167 3 . 4 . 41 218 Treads 1470 | 179 153 11 . . . 19 621 46 . . . . 387 54 Legs 132 | . . . . . . . . . 92 . . . . 40 Wheels . | . . . . . . . . . . . . . . . Hover 2016 | . . . . . . . . 331 383 360 328 80 330 204 Flight 1785 | . . 283 593 222 462 116 . . 17 . . . 70 22 Fastest Speed 31 | 50 160 31 31 31 31 34 152 50 44 44 120 206 100 32 Average Speed 128 | 147 160 38 31 31 34 258 157 260 125 49 204 206 183 68 Slowest Speed 1850 | 160 160 160 31 31 114 1850 158 1000 1250 300 300 206 400 160 Overloaded Moves . | . . . . . . . . . . . . . . . Propulsion Burnouts . | . . . . . . . . . . . . . . . Robots Hopped 9 | . . 5 . . 2 . . . . . . . . 2 Potential Cave-ins 19 | . . 4 . . 2 . . . . 3 . . . 10 Cave-ins Triggered 1 | . . . . . . . . . . . . . . 1 Exploration Rate (%) 44 | 10 30 30 99 61 77 31 17 96 8 10 32 68 82 18 Regions Visited 14 Branch Regions 6 Pre-discovered Areas 2 | . . . . . . . . . . . . 1 1 . Known Exits Taken 2 | . . . . . . 1 . . . 1 . . . . Unknown Exits Taken 10 | 1 1 1 1 1 1 . . . 1 . 1 1 1 . Scrap Searched 5 | . . . 2 . 1 . . . . . 2 . . . Spaces Dug 33 | . 2 5 . . 4 . . . . . . . . 22 Terrain Destroyed 201 | . 2 5 . . 4 27 4 48 . 71 10 . 4 26 Melee . | . . . . . . . . . . . . . . . Projectile 61 | . 2 5 . . 4 1 . . . 10 9 . 4 26 AOE 139 | . . . . . . 26 4 48 . 61 . . . . Terrain Rammed . | . . . . . . . . . . . . . . . Walls Destroyed . | . . . . . . . . . . . . . . . Machines Disabled . | . . . . . . . . . . . . . . . Actions | -11 -10 -9 -9 -9 -8 -8 -7 -7 -7 -6 -6 -6 -5 -5 --------- Run | Yrd Mat Mat Min Exi Min Mat Fac Was Fac Fac Low Dat Pro Fac Total 8217 | 271 381 481 762 224 739 317 803 599 991 692 380 79 861 637 Wait 1704 | . 194 143 159 . 272 37 86 26 460 296 14 . 7 10 Move 5963 | 218 152 283 592 221 457 252 621 543 494 359 331 79 827 534 Hop 9 | . . 5 . . 2 . . . . . . . . 2 Pick Up 107 | 12 9 5 4 1 . 3 30 5 4 5 9 . 2 18 Fast Attach 35 | 1 1 . . . . 2 4 2 17 4 . . . 4 Attach 71 | 5 1 7 1 . 1 4 14 1 . 6 10 . 7 14 Detach 1 | . . . . . . 1 . . . . . . . . Swap 39 | . 4 6 1 . 2 1 10 8 1 2 2 . . 2 Drop 56 | . 7 2 1 2 . . 9 11 13 4 1 . . 6 Fire 206 | 35 13 29 4 . 4 17 17 3 . 14 7 . 18 45 Melee 8 | . . . . . . . . . . 2 6 . . . Ram 5 | . . 1 . . 1 . . . 2 . . . . 1 Kick 1 | . . . . . . . . . . . . . . 1 Crush 12 | . . . . . . . 12 . . . . . . . Escape Stasis . | . . . . . . . . . . . . . . . Rewire . | . . . . . . . . . . . . . . . Trap . | . . . . . . . . . . . . . . . Miscellaneous . | . . . . . . . . . . . . . . . Route ------- -11/Scrapyard -10/Materials -9/Materials -9/Mines (discovered 4 exits: *Mat x2 / *Exi / [*Zio]) -9/Exiles -8/Mines -8/Materials (discovered 3 exits: *Fac x2 / Sto) -7/Factory -7/Waste -7/Factory -6/Factory (discovered 2 exits: *Low x2) -6/Lower Caves (discovered 2 exits: Low / *Dat) -6/Data Miner -5/Proximity Caves -5/Factory History --------- Turn | Location | Event 14 | -11/Scrapyard | Discovered new exit (range 15) 432 | -11/Scrapyard | Entered Materials 454 | -10/Materials | Build established: Mutant 668 | -10/Materials | Repaired Seismic Detector 898 | -10/Materials | Discovered new exit (range 7) 924 | -10/Materials | Entered another Materials area 924 | -9/Materials | Evolved 2 slots: Propulsion x2 1249 | -9/Materials | Destroyed 8 combat bots 1256 | -9/Materials | Discovered new exit (range 12) 1280 | -9/Materials | Lost 3 parts (3n) 1290 | -9/Materials | Entered Mines 1293 | -9/Mines | Assisted by bots powering up and referring to "LRC-V3" 1392 | -9/Mines | Discovered new exit (range 8) 1410 | -9/Mines | Met a Derelict shopkeep closing up shop 1428 | -9/Mines | Learned 4 Materials zone layouts 1437 | -9/Mines | Discovered new exit (range 8) 1545 | -9/Mines | Build established: Scavenger-Sprinter 1574 | -9/Mines | A Derelict revealed a hidden shortcut to a safe place 1628 | -9/Mines | Found a hidden stash of uninstalled traps 1649 | -9/Mines | Deemed a non-threat by the Exiles lab entrance 1650 | -9/Mines | Discovered new exit (range 5) 1651 | -9/Mines | Entered Exiles 1659 | -9/Exiles | Met 8R-AWN 1665 | -9/Exiles | Met EX-HEX 1673 | -9/Exiles | Met EX-BIN 1677 | -9/Exiles | Aligned with FarCom system 1677 | -9/Exiles | Given EX-Vault access code 1686 | -9/Exiles | Opened EX-Vault 1689 | -9/Exiles | Found Firepult 1696 | -9/Exiles | Warned to stay clear of 0b10 Research branches 1706 | -9/Exiles | Met EX-DEC 1719 | -9/Exiles | Discovered new exit (range 10) 1722 | -9/Exiles | Left Exiles lab with Firepult 1722 | -9/Exiles | Entered Mines 2005 | -8/Mines | Discovered new exit (range 7) 2172 | -8/Mines | Entered Materials 2172 | -8/Materials | Evolved 2 slots: Propulsion x1, Utility x1 2173 | -8/Materials | Identified exit to Storage 2174 | -8/Materials | Identified exit to Factory 2310 | -8/Materials | Lost 6 parts (1p3n2w) 2571 | -8/Materials | Build established: Mutant 2796 | -8/Materials | Core integrity fell below 50% 2853 | -8/Materials | Released all parts (4) 2879 | -8/Materials | Discovered exit to Factory (range 16) 2914 | -8/Materials | Entered Factory 2914 | -7/Factory | Evolved 2 slots: Utility x1, Weapon x1 3494 | -7/Factory | Build established: Skirmisher 4119 | -7/Factory | Sucked down chute 4119 | -7/Factory | Entered Waste 4137 | -7/Waste | Spotted C-40 Crusher 4175 | -7/Waste | Spotted C-40 Crusher 4179 | -7/Waste | Spotted C-40 Crusher 4192 | -7/Waste | Spotted C-40 Crusher 4192 | -7/Waste | Spotted C-40 Crusher 4207 | -7/Waste | Crushed by Compactor (1 part destroyed, 2 dropped) 4236 | -7/Waste | Crushed by Compactor (1 part destroyed, 1 dropped) 4243 | -7/Waste | Crushed by Compactor (1 part destroyed, 1 dropped) 4246 | -7/Waste | Crushed by Compactor (1 part destroyed, 1 dropped) 4249 | -7/Waste | Crushed by Compactor (1 part destroyed, 1 dropped) 4252 | -7/Waste | Crushed by Compactor (1 part destroyed) 4266 | -7/Waste | Core integrity fell below 50% 4278 | -7/Waste | Spotted C-40 Crusher 4283 | -7/Waste | Lost 6 parts (2n3u1w) 4309 | -7/Waste | Warlord forces began an assault 4364 | -7/Waste | Allies destroyed C-40 Crusher 4364 | -7/Waste | Allies destroyed C-40 Crusher 4365 | -7/Waste | Allies destroyed C-40 Crusher 4369 | -7/Waste | Allies destroyed C-40 Crusher 4385 | -7/Waste | Found Damper Plating 5234 | -7/Waste | Discovered new exit (range 16) 5594 | -7/Waste | Entered Factory 5594 | -7/Factory | Accompanied by 17 allies 5701 | -7/Factory | Lost 3 allies 6145 | -7/Factory | Discovered new exit (range 15) 6500 | -7/Factory | Build established: Tank 6714 | -7/Factory | Entered another Factory area 6714 | -6/Factory | Accompanied by 13 allies 6714 | -6/Factory | Evolved 2 slots: Utility x1, Weapon x1 6855 | -6/Factory | Identified exit to Lower Caves 7164 | -6/Factory | Lost 11 allies 7182 | -6/Factory | Destroyed 8 combat bots 7262 | -6/Factory | Entered Lower Caves 7338 | -6/Lower Caves | Identified exit to Lower Caves 7345 | -6/Lower Caves | Lost 11 parts (1p5n2u3w) 7348 | -6/Lower Caves | Found DCF Scrap (13 items) 7665 | -6/Lower Caves | Build established: Derelict-Skirmisher 7855 | -6/Lower Caves | Learned location of 1 exit from Lower Caves 8013 | -6/Lower Caves | A Derelict revealed a hidden shortcut to meet someone special 8016 | -6/Lower Caves | Entered Data Miner 8016 | -6/Data Miner | Discovered new exit (range 6) 8056 | -6/Data Miner | Met Data Miner 8093 | -6/Data Miner | Learned location of Section 7 (-2) 8093 | -6/Data Miner | Acquired the access code to Warlord's prototype stash 8128 | -6/Data Miner | Received God Mode back door access code from Data Miner 8179 | -6/Data Miner | Entered Proximity Caves 9070 | -5/Proximity Caves | Spotted B-75 Beast 9135 | -5/Proximity Caves | Lost 10 parts (1p3n2u4w) 9178 | -5/Proximity Caves | Learned location of Armory (-4) 9374 | -5/Proximity Caves | Build established: Mutant 9749 | -5/Proximity Caves | Discovered new exit (range 15) 9761 | -5/Proximity Caves | Core integrity fell below 50% 9772 | -5/Proximity Caves | Entered Factory 9772 | -5/Factory | Evolved 2 slots: Power x1, Weapon x1 9893 | -5/Factory | Incoming investigation squad redirected 10014 | -5/Factory | Spotted B-75 Beast 10029 | -5/Factory | Core integrity fell below 50% 10046 | -5/Factory | Lost 5 parts (2n2u1w) 10096 | -5/Factory | Fabricated Cld. Nuclear Pulse Thruster? 10197 | -5/Factory | Crushed by falling debris 10247 | -5/Factory | Core integrity fell below 20% 10282 | -5/Factory | Lost 4 parts (3n1w) 10285 | -5/Factory | Destroyed by H-66 Slayer with Gauss Rifle Last Messages --------------- 10247_ Thunder Leg destroyed. 10247_ Knocked back. 10247_ Slug penetrates Wall. 10248_ Acquired 9 matter. 10249_ Acquired 5 matter. 10251_ Penetrated by Slug. 10251_ Thunder Leg destroyed. 10255_ Slug penetrates Wall. 10258_ U-05 Engineer builds a Wall. 10258_ Penetrated by Slug. 10258_ Slug penetrates Wall. 10258_ Penetrated by Slug. 10267_ U-05 Engineer builds a Wall. 10268_ Connecting with Terminal... 10268_ ALERT: Suspicious activity at Terminal F014. Dispatching Investigation squad. 10273_ Kicked P-70 Sage out of the way. 10275_ CUAURB SDT,V8VVHCZ%F S JR|XKCIX 10277_ Penetrated by Slug. [Achievement: Just Browsing] Map ----- +----------------------------------------------------+ | ??????????????????????# ############### | | ??????????????????????# #??????????????? | | ??????????????????????# #???????????????? | | ??????????????????????# #???????????????? | | ??????????????????????# #???????????????? | | ??????????????????????# #???????????????? | | ??????????????????????# #???????????????? | | ??????????????????????# #??????????#????? | | ???????????????????????###########???????##T ????? | | ????????????????????????????????????????? ????? | | ???????????????????????????? ???????????? ??? | | ???????????????????????? ??? "???"??????? ??? | | ???????????????????????? ?? "?? "???????? ??? | | ???????????????????????"" """ """ "???????? ??? | | ???????????????????? """ """ """ """ #####/##### | | ??????????????????? """ """ """ """ # | | ???????????????????? Hk # | | ???????????????????? ?# | | ????????????????????? != ??# | | ???????????????????????!= s A ???# | | ????????????????????????? ?????# | | ??????????????????######### ######## | | ??????????????????? u ; h # !#% | | ??????????????????#u """" # # """ # | | ??????????????????+ """" ; p p/ """ # !% | | ??????????????????# """"@/ # """ !#% != | | ??????????????????# """" # # # ==%! | | ????????g?????????# # # ""######"#### | | ?????????g?????g??# """" ####### """ #####??? | | ??????????g??s????# """" #?????# ""####??????? | | ???????????s??????# """" #?????# T#?????????? | | ??????????s???s???# """" #?????#! ""#?????????? | | ??????????s???????????? #?????# ""#?????????? | | ????????????????????????###?????# ""#?????????? | | ????????????????????????????????# #?????????? | | ????????????????????????????????########?????????? | | ?????????????????????????????????????????????????? | | ?????????????????????????????????????????????????? | | ?????????????????????????????????????????????????? | | ?????????????????????????????????????????????????? | | ?????????????????????????????????????????????????? | | ?????????????????????????????????????????????????? | | ?????????????????????????????????????????????????? | | ?????????????????????????????????????????????????? | | ?????????????????????????????????????????????????? | | ?????????????????????????????????????????????????? | | ?????????????????????????????????????????????????? | | ?????????????????????????????????????????????????? | | ?????????????????????????????????????????????????? | | ?????????????????????????????????????????????????? | +----------------------------------------------------+ Best States ------------- Heat Dissipation 51 Coolant Potential 65 Energy Generation 18 Energy Capacity 490 Matter Stores 300 Matter Capacity 300 Sight Range 16 Robot Scan Range 15 Terrain Scan Range 16 Terrain Scan Density 10 Power Amplification 20 Base Temperature (-) 150 Armor Coverage 1600 Resistance: EM 90 Evasion (%) 63 Targeting Accuracy 5 Recoil Reduction 4 Energy Filtering 30 Particle Charging 20 Item Schematics ----------------- Combat Drone Bay | -6/Data Miner | Free Lgt. Regenerative Plating | -6/Data Miner | Free Cld. Nuclear Pulse Thruster | -6/Data Miner | Free Imp. Energy Well | -6/Data Miner | Free Enh. Coil Gun | -6/Data Miner | Free Imp. Gyrokinetic Inverter | -6/Data Miner | Free Hardcell Cannon | -6/Data Miner | Free Adv. Coolant Injector | -6/Data Miner | Free Imp. Transmission Jammer | -6/Data Miner | Free Adv. Thermal Generator | -6/Data Miner | Free Adv. Recalibrator | -6/Data Miner | Free Gamma Rifle | -6/Data Miner | Free Robot Schematics ------------------ Y-64 Sentinel | -6/Data Miner | Free B-60 Warrior | -6/Data Miner | Free X-72 Disruptor | -6/Data Miner | Free A-15 Conveyor | -6/Data Miner | Free H-77 Assassin | -6/Data Miner | Free H-66 Slayer | -6/Data Miner | Free M-22 Extractor | -6/Data Miner | Free Fabricated ------------ Cld. Nuclear Pulse Thruster | x1 | -5/Factory Repaired ---------- Seismic Detector | 50% | -10/Materials Alien Tech Used ----------------- None Achievements -------------- Backstab Just Browsing Challenges ------------ None Game ------ Seed FluxBattleProjector Manual? 0 Play Time 01:30:05 Cumulative 33.1 hours Start 2025.08.07 @ 16:17:25 End 2025.08.07 @ 17:50:25 Sessions 1 Manual Loads 0 Difficulty Rogue Special Mode None Game No. 65 Rogue 62 Adventurer 3 Explorer 0 Win Type - Total 0 Types 0/0/0/0/0/0/0/0/0/0 Lore% 26 Gallery% 25 Achievement% 26 Wizard Run 0 Options --------- Layout 1 ASCII 0 Keyboard 0 Movement Mouse Keybinds 0 Fullscreen 1 Font 24/Smallcaps Map View 50x35 Zoom Use 0% Tactical HUD 1 Map Filters NONE Filters NONE Steam 1 RUN: e5160b94-4cfa-41c4-8457-1536f93b7137